[Event "Eurasia Open Cup 2019"]
[Site "Ekaterinburg"]
[Date "2019.08.07"]
[Round "7.42"]
[White "Protopopova, Anastasiya"]
[Black "Chekletsov, Egor"]
[Result "1-0"]
[ECO "E08"]
[WhiteElo "2272"]
[BlackElo "2088"]
[Annotator "NA"]
[PlyCount "73"]
[EventDate "2019.07.31"]
[EventType "swiss"]
[EventCountry "RUS"]
[SourceTitle "playchess.com"]
[Source "ChessBase"]
[SourceQuality "1"]
[TimeControl "5400+30"]

1. d4 {[%emt 0:00:00]} Nf6 {[%emt 0:00:00]} 2. c4 {[%emt 0:00:00]} e6 {[%emt 0:00:17]} 3. g3 {[%emt 0:00:00]} d5 {[%emt 0:01:21]} 4. Bg2 {[%emt 0:00:00]} Bb4+ {[%emt 0:01:11]} 5. Bd2 {[%emt 0:00:55]} Be7 {[%emt 0:01:12]} 6. Nf3 {[%emt 0:00:05]} c6 {[%emt 0:00:54]} 7. Qc2 {[%emt 0:00:36]} O-O {[%emt 0:01:02]} 8. O-O {[%emt 0:00:05]} Nbd7 {[%emt 0:01:31]} 9. Bf4 {[%emt 0:00:55]} b6 {[%emt 0:02:32]} 10. cxd5 {[%emt 0:00:05]} cxd5 {[%emt 0:00:09]} 11. Rc1 {[%emt 0:00:05]} Ba6 {[%emt 0:03:05]} 12. Nc3 {[%emt 0:02:57]} Ne8 {[%emt 0:09:42]} 13. a4 {[%emt 0:11:41]} Nd6 {[%emt 0:10:02]} 14. Bxd6 {[%emt 0:13:40]} Bxd6 {[%emt 0:00:35]} 15. Nb5 {[%emt 0:00:05]} Nf6 {[%emt 0:11:58]} 16. Nd2 {[%emt 0:10:49]} Rc8 {[%emt 0:08:20]} 17. Qb3 {[%emt 0:00:34]} Qd7 {[%emt 0:00:45]} 18. e3 {[%emt 0:00:39]} Rxc1+ {[%emt 0:04:23]} 19. Rxc1 {[%emt 0:00:05]} Rc8 {[%emt 0:00:05]} 20. Ra1 {[%emt 0:01:35]} Bxb5 {[%emt 0:05:32]} 21. axb5 {[%emt 0:00:46]} Bb8 {[%emt 0:00:05]} 22. Bf1 {[%emt 0:02:01]} Ne8 {[%emt 0:02:56]} 23. Nf3 {[%emt 0:06:14]} f6 {[%emt 0:03:34]} 24. Bh3 {[%emt 0:02:54]} Kf7 {[%emt 0:02:26]} 25. Re1 {[%emt 0:24:23]} Nd6 {[%emt 0:06:49]} 26. Qxd5 {[%emt 0:02:33]} exd5 {[%emt 0:00:54]} 27. Bxd7 {[%emt 0:00:04]} Rc2 {[%emt 0:00:08]} 28. Rb1 {[%emt 0:01:01]} Ke7 {[%emt 0:02:50]} 29. Bc6 {[%emt 0:00:52]} Ke6 {[%emt 0:00:03]} 30. Ne1 {[%emt 0:00:26]} Rd2 {[%emt 0:01:04]} 31. Rc1 {[%emt 0:02:47]} g5 {[%emt 0:03:04]} 32. Rc2 {[%emt 0:00:51]} Rd1 {[%emt 0:01:12]} 33. Kf1 {[%emt 0:00:03]} Nc4 {[%emt 0:00:36]} 34. Ke2 {[%emt 0:02:44]} Rb1 {[%emt 0:00:11]} 35. e4 {[%emt 0:00:45]} Nxb2 {[%emt 0:02:32]} 36. Bxd5+ {[%emt 0:00:21]} Ke7 {[%emt 0:00:07]} 37. Ba2 {[%emt 0:00:30]} 1-0

[Event "Eurasia Open Cup 2019"]
[Site "Ekaterinburg"]
[Date "2019.08.07"]
[Round "7.43"]
[White "Garifullina, Leya"]
[Black "Lysenko, Maria"]
[Result "1-0"]
[ECO "B30"]
[WhiteElo "2268"]
[BlackElo "2064"]
[Annotator "NA"]
[PlyCount "87"]
[EventDate "2019.07.31"]
[EventType "swiss"]
[EventCountry "RUS"]
[SourceTitle "playchess.com"]
[Source "ChessBase"]
[SourceQuality "1"]
[TimeControl "5400+30"]

1. e4 {[%emt 0:00:00]} c5 {[%emt 0:00:01]} 2. Nf3 {[%emt 0:00:00]} Nc6 {[%emt 0:00:00]} 3. Bb5 {[%emt 0:00:00]} e6 {[%emt 0:00:05]} 4. Bxc6 {[%emt 0:00:01]} bxc6 {[%emt 0:00:05]} 5. b3 {[%emt 0:00:15]} d5 {[%emt 0:01:52]} 6. e5 {[%emt 0:01:20]} Ne7 {[%emt 0:00:10]} 7. O-O {[%emt 0:00:16]} Ng6 {[%emt 0:00:05]} 8. d3 {[%emt 0:00:51]} Be7 {[%emt 0:00:15]} 9. Re1 {[%emt 0:00:20]} O-O {[%emt 0:00:30]} 10. Bb2 {[%emt 0:00:30]} f6 {[%emt 0:01:12]} 11. Nbd2 {[%emt 0:01:11]} fxe5 {[%emt 0:11:54]} 12. Nxe5 {[%emt 0:00:57]} Nxe5 {[%emt 0:00:10]} 13. Bxe5 {[%emt 0:00:05]} Bf6 {[%emt 0:00:15]} 14. Nf3 {[%emt 0:00:45]} Qe7 {[%emt 0:01:51]} 15. Qe2 {[%emt 0:00:25]} Bd7 {[%emt 0:00:56]} 16. Qe3 {[%emt 0:02:22]} Rae8 {[%emt 0:05:07]} 17. a4 {[%emt 0:01:46]} Bc8 {[%emt 0:04:23]} 18. Qd2 {[%emt 0:02:14]} Qd8 {[%emt 0:14:36]} 19. Qc3 {[%emt 0:01:52]} Qb6 {[%emt 0:01:52]} 20. Qd2 {[%emt 0:03:48]} Ba6 {[%emt 0:09:53]} 21. Rab1 {[%emt 0:00:16]} Qd8 {[%emt 0:01:07]} 22. Qe3 {[%emt 0:00:52]} Qe7 {[%emt 0:00:35]} 23. Rbd1 {[%emt 0:00:51]} Rf7 {[%emt 0:01:06]} 24. h3 {[%emt 0:01:32]} Qf8 {[%emt 0:08:40]} 25. Rd2 {[%emt 0:04:36]} Bd8 {[%emt 0:04:33]} 26. Red1 {[%emt 0:01:05]} Bb6 {[%emt 0:01:28]} 27. c4 {[%emt 0:02:39]} Ba5 {[%emt 0:02:34]} 28. Rc2 {[%emt 0:00:45]} Bb6 {[%emt 0:03:44]} 29. Ra1 {[%emt 0:00:25]} d4 {[%emt 0:06:25]} 30. Qe4 {[%emt 0:00:15]} Bd8 {[%emt 0:00:09]} 31. Bg3 {[%emt 0:02:05]} Bc7 {[%emt 0:02:34]} 32. Ng5 {[%emt 0:02:32]} Rf5 {[%emt 0:01:48]} 33. Bxc7 {[%emt 0:01:39]} Rxg5 {[%emt 0:00:05]} 34. Qxc6 {[%emt 0:01:34]} Bc8 {[%emt 0:02:38]} 35. Bg3 {[%emt 0:02:14]} Qf7 {[%emt 0:02:53]} 36. h4 {[%emt 0:02:29]} Rf5 {[%emt 0:01:05]} 37. Re1 {[%emt 0:00:32]} Bb7 {[%emt 0:00:28]} 38. Qd6 {[%emt 0:00:37]} Ba8 {[%emt 0:00:22]} 39. Rce2 {[%emt 0:03:40]} Qb7 {[%emt 0:00:14]} 40. f3 {[%emt 0:01:03]} Qxb3 {[%emt 0:00:31]} 41. Rxe6 {[%emt 0:00:32]} Ref8 {[%emt 0:00:13]} 42. Re8 {[%emt 0:00:46]} Qxd3 {[%emt 0:00:32]} 43. Qe6+ {[%emt 0:00:22]} Kh8 {[%emt 0:00:09]} 44. Bd6 {[%emt 0:00:36]} 1-0

[Event "Eurasia Open Cup 2019"]
[Site "Ekaterinburg"]
[Date "2019.08.07"]
[Round "7.44"]
[White "Kolay, Alex"]
[Black "Zharkov, Nikolay"]
[Result "1/2-1/2"]
[ECO "A42"]
[WhiteElo "2229"]
[BlackElo "2067"]
[Annotator "NA"]
[PlyCount "95"]
[EventDate "2019.07.31"]
[EventType "swiss"]
[EventCountry "RUS"]
[SourceTitle "playchess.com"]
[Source "ChessBase"]
[SourceQuality "1"]
[TimeControl "5400+30"]

1. d4 {[%emt 0:00:00]} g6 {[%emt 0:00:00]} 2. c4 {[%emt 0:00:00]} Bg7 {[%emt 0:00:00]} 3. Nc3 {[%emt 0:00:00]} d6 {[%emt 0:00:00]} 4. e4 {[%emt 0:00:00]} e5 {[%emt 0:00:00]} 5. Nf3 {[%emt 0:00:00]} exd4 {[%emt 0:00:06]} 6. Nxd4 {[%emt 0:00:10]} Ne7 {[%emt 0:00:05]} 7. Be3 {[%emt 0:00:10]} Nbc6 {[%emt 0:00:05]} 8. h4 {[%emt 0:00:15]} h6 {[%emt 0:00:40]} 9. Qd2 {[%emt 0:00:25]} f5 {[%emt 0:04:24]} 10. Nxc6 {[%emt 0:01:46]} Nxc6 {[%emt 0:01:01]} 11. O-O-O {[%emt 0:01:01]} fxe4 {[%emt 0:04:05]} 12. Nxe4 {[%emt 0:04:22]} Be6 {[%emt 0:03:17]} 13. Nc3 {[%emt 0:15:45]} Qd7 {[%emt 0:08:57]} 14. Nd5 {[%emt 0:01:41]} O-O-O {[%emt 0:02:07]} 15. Kb1 {[%emt 0:04:50]} Kb8 {[%emt 0:03:54]} 16. Be2 {[%emt 0:02:43]} Rde8 {[%emt 0:05:32]} 17. Rhe1 {[%emt 0:02:11]} Qf7 {[%emt 0:09:50]} 18. Ka1 {[%emt 0:14:34]} Bc8 {[%emt 0:13:12]} 19. Qc2 {[%emt 0:07:26]} b6 {[%emt 0:06:15]} 20. Bd3 {[%emt 0:17:38]} Ne5 {[%emt 0:00:19]} 21. Be4 {[%emt 0:00:09]} Bf5 {[%emt 0:00:42]} 22. Bxf5 {[%emt 0:02:40]} gxf5 {[%emt 0:00:33]} 23. Bd4 {[%emt 0:02:34]} Nc6 {[%emt 0:04:19]} 24. Bxg7 {[%emt 0:01:12]} Qxg7 {[%emt 0:00:04]} 25. g3 {[%emt 0:00:05]} Re5 {[%emt 0:00:22]} 26. Re3 {[%emt 0:09:06]} Rhe8 {[%emt 0:01:58]} 27. a3 {[%emt 0:05:24]} Re4 {[%emt 0:01:48]} 28. Rde1 {[%emt 0:02:45]} Qd4 {[%emt 0:01:07]} 29. Rxe4 {[%emt 0:01:19]} Rxe4 {[%emt 0:00:41]} 30. Rxe4 {[%emt 0:00:07]} fxe4 {[%emt 0:00:11]} 31. Nc3 {[%emt 0:00:22]} e3 {[%emt 0:01:26]} 32. fxe3 {[%emt 0:00:43]} Qxe3 {[%emt 0:00:40]} 33. Qe4 {[%emt 0:00:22]} Qxe4 {[%emt 0:01:49]} 34. Nxe4 {[%emt 0:00:03]} Ne5 {[%emt 0:00:08]} 35. b3 {[%emt 0:00:22]} Ng4 {[%emt 0:00:34]} 36. Kb2 {[%emt 0:00:27]} Kc8 {[%emt 0:00:24]} 37. Kc3 {[%emt 0:00:42]} Kd7 {[%emt 0:00:06]} 38. Kd4 {[%emt 0:00:25]} Ke6 {[%emt 0:00:38]} 39. Nc3 {[%emt 0:00:17]} c6 {[%emt 0:00:17]} 40. Ne2 {[%emt 0:00:25]} Kf5 {[%emt 0:00:31]} 41. Nc3 {[%emt 0:02:26]} Nf6 {[%emt 0:00:41]} 42. Nd1 {[%emt 0:01:02]} Ng4 {[%emt 0:02:11]} 43. Nc3 {[%emt 0:00:17]} h5 {[%emt 0:00:19]} 44. Ne4 {[%emt 0:00:59]} Ke6 {[%emt 0:01:20]} 45. Ng5+ {[%emt 0:00:19]} Kf6 {[%emt 0:00:16]} 46. Ne4+ {[%emt 0:00:47]} Ke7 {[%emt 0:00:14]} 47. Nc3 {[%emt 0:00:33]} Kf6 {[%emt 0:02:37]} 48. Ke4 {[%emt 0:00:25]} 1/2-1/2

[Event "Eurasia Open Cup 2019"]
[Site "Ekaterinburg"]
[Date "2019.08.07"]
[Round "7.45"]
[White "Kharitonov, Egor"]
[Black "Navrodskiy, Boris"]
[Result "0-1"]
[ECO "E04"]
[WhiteElo "2387"]
[BlackElo "2223"]
[Annotator "NA"]
[PlyCount "114"]
[EventDate "2019.07.31"]
[EventType "swiss"]
[EventCountry "RUS"]
[SourceTitle "playchess.com"]
[Source "ChessBase"]
[SourceQuality "1"]
[TimeControl "5400+30"]

1. d4 {[%emt 0:00:00]} d5 {[%emt 0:00:00]} 2. c4 {[%emt 0:00:00]} e6 {[%emt 0:00:00]} 3. Nf3 {[%emt 0:00:00]} Nf6 {[%emt 0:00:00]} 4. g3 {[%emt 0:00:00]} dxc4 {[%emt 0:02:53]} 5. Bg2 {[%emt 0:00:00]} Nc6 {[%emt 0:00:05]} 6. Qa4 {[%emt 0:00:01]} Bb4+ {[%emt 0:00:15]} 7. Bd2 {[%emt 0:00:10]} Nd5 {[%emt 0:00:10]} 8. Bxb4 {[%emt 0:00:26]} Ndxb4 {[%emt 0:00:00]} 9. O-O {[%emt 0:00:16]} Rb8 {[%emt 0:02:10]} 10. Na3 {[%emt 0:00:05]} O-O {[%emt 0:01:43]} 11. Qb5 {[%emt 0:00:35]} b6 {[%emt 0:04:12]} 12. Qxc4 {[%emt 0:01:45]} Ba6 {[%emt 0:01:20]} 13. Nb5 {[%emt 0:00:10]} Qd5 {[%emt 0:04:12]} 14. Qxd5 {[%emt 0:00:20]} Nxd5 {[%emt 0:05:14]} 15. a4 {[%emt 0:00:15]} Na5 {[%emt 0:03:27]} 16. Ne5 {[%emt 0:00:31]} Rfd8 {[%emt 0:12:35]} 17. b4 {[%emt 0:09:47]} Nxb4 {[%emt 0:08:59]} 18. Rab1 {[%emt 0:00:25]} Bxb5 {[%emt 0:13:27]} 19. axb5 {[%emt 0:01:57]} Nd5 {[%emt 0:00:21]} 20. Rfc1 {[%emt 0:01:17]} Rbc8 {[%emt 0:12:55]} 21. e3 {[%emt 0:14:31]} c5 {[%emt 0:05:30]} 22. dxc5 {[%emt 0:13:55]} bxc5 {[%emt 0:00:05]} 23. Nc4 {[%emt 0:01:11]} Nxc4 {[%emt 0:00:57]} 24. Rxc4 {[%emt 0:00:05]} Nb6 {[%emt 0:00:14]} 25. Rc3 {[%emt 0:01:29]} c4 {[%emt 0:00:42]} 26. Bf1 {[%emt 0:00:10]} Rc5 {[%emt 0:00:20]} 27. Kg2 {[%emt 0:06:56]} Rd2 {[%emt 0:03:25]} 28. g4 {[%emt 0:01:46]} g6 {[%emt 0:01:28]} 29. Kf3 {[%emt 0:07:55]} Kg7 {[%emt 0:03:10]} 30. e4 {[%emt 0:02:26]} g5 {[%emt 0:03:05]} 31. Ke3 {[%emt 0:00:17]} Rd7 {[%emt 0:00:04]} 32. Be2 {[%emt 0:00:35]} Kf6 {[%emt 0:00:47]} 33. f4 {[%emt 0:01:19]} gxf4+ {[%emt 0:00:46]} 34. Kxf4 {[%emt 0:00:08]} Rd4 {[%emt 0:00:24]} 35. Ke3 {[%emt 0:03:16]} Ke5 {[%emt 0:00:19]} 36. Bf3 {[%emt 0:00:07]} Na4 {[%emt 0:01:07]} 37. Ra3 {[%emt 0:02:06]} c3 {[%emt 0:00:14]} 38. Rab3 {[%emt 0:01:27]} c2 {[%emt 0:03:51]} 39. Rc1 {[%emt 0:00:07]} Nc3 {[%emt 0:00:18]} 40. Rxc2 {[%emt 0:00:57]} Nd5+ {[%emt 0:00:08]} 41. exd5 {[%emt 0:00:03]} Rxc2 {[%emt 0:00:08]} 42. dxe6 {[%emt 0:00:07]} fxe6 {[%emt 0:00:04]} 43. b6 {[%emt 0:00:03]} axb6 {[%emt 0:00:18]} 44. Rxb6 {[%emt 0:00:44]} Rc3+ {[%emt 0:00:04]} 45. Ke2 {[%emt 0:00:27]} Rf4 {[%emt 0:01:17]} 46. Rb5+ {[%emt 0:00:40]} Kf6 {[%emt 0:00:27]} 47. g5+ {[%emt 0:00:11]} Kg6 {[%emt 0:00:03]} 48. Bb7 {[%emt 0:01:05]} Rh4 {[%emt 0:00:59]} 49. Kd2 {[%emt 0:01:27]} Ra3 {[%emt 0:00:21]} 50. Kc1 {[%emt 0:00:25]} Kf7 {[%emt 0:03:35]} 51. h3 {[%emt 0:02:29]} Raxh3 {[%emt 0:01:02]} 52. Rc5 {[%emt 0:01:50]} Rg3 {[%emt 0:00:54]} 53. Rc7+ {[%emt 0:01:15]} Kg6 {[%emt 0:00:05]} 54. Rc6 {[%emt 0:00:17]} Kf5 {[%emt 0:01:10]} 55. Rc5+ {[%emt 0:00:13]} e5 {[%emt 0:00:51]} 56. Bc8+ {[%emt 0:00:46]} Kf4 {[%emt 0:00:08]} 57. Rc4+ {[%emt 0:00:24]} Kxg5 {[%emt 0:00:10]} 0-1

[Event "Eurasia Open Cup 2019"]
[Site "Ekaterinburg"]
[Date "2019.08.08"]
[Round "8.1"]
[White "Kunin, Vitaly"]
[Black "Kokarev, Dmitry"]
[Result "1/2-1/2"]
[ECO "A49"]
[WhiteElo "2527"]
[BlackElo "2607"]
[Annotator "ChessBase"]
[PlyCount "118"]
[EventDate "2019.07.31"]
[EventType "swiss"]
[EventCountry "RUS"]
[SourceTitle "playchess.com"]
[Source "ChessBase"]
[SourceQuality "1"]
[TimeControl "5400+30"]

1. d4 {[%emt 0:00:00]} Nf6 {[%emt 0:00:00]} 2. Nf3 {[%emt 0:02:25]} g6 {[%emt 0:00:00]} 3. g3 {[%emt 0:00:10]} Bg7 {[%emt 0:00:00]} 4. Bg2 {[%emt 0:00:14]} c5 {[%emt 0:00:00]} 5. c3 {[%emt 0:00:08]} Na6 {[%emt 0:00:10]} 6. O-O {[%emt 0:01:38]} O-O {[%emt 0:00:09]} 7. Nbd2 {[%emt 0:01:56]} d5 {[%emt 0:00:06]} 8. Ne5 {[%emt 0:05:54]} cxd4 {[%emt 0:00:53]} 9. cxd4 {[%emt 0:01:04]} Bf5 {[%emt 0:03:02]} 10. a3 {[%emt 0:00:38]} Qb6 {[%emt 0:01:35]} 11. Nb1 {[%emt 0:28:28]} Rac8 {[%emt 0:13:38]} 12. Nc3 {[%emt 0:03:11]} Rfd8 {[%emt 0:06:48]} 13. Qa4 {[%emt 0:00:29]} Nb8 {[%emt 0:00:09]} 14. Bg5 {[%emt 0:11:21]} Qxb2 {[%emt 0:07:14]} 15. Bxf6 {[%emt 0:06:43]} exf6 {[%emt 0:08:37]} 16. Nxd5 {[%emt 0:00:31]} fxe5 {[%emt 0:00:17]} 17. Ne7+ {[%emt 0:00:24]} Kf8 {[%emt 0:01:51]} 18. Nxc8 {[%emt 0:00:15]} Bxc8 {[%emt 0:02:53]} 19. Qxa7 {[%emt 0:00:12]} Nc6 {[%emt 0:00:24]} 20. Qc5+ {[%emt 0:04:36]} Kg8 {[%emt 0:01:11]} 21. d5 {[%emt 0:03:09]} Bf8 {[%emt 0:00:38]} 22. Qc4 {[%emt 0:01:52]} Nd4 {[%emt 0:13:39]} 23. e3 {[%emt 0:01:26]} Qc2 {[%emt 0:01:23]} 24. Rfc1 {[%emt 0:12:19]} Qxc4 {[%emt 0:01:09]} 25. Rxc4 {[%emt 0:03:13]} Nb5 {[%emt 0:00:08]} 26. a4 {[%emt 0:00:09]} Nd6 {[%emt 0:00:08]} 27. Rb4 {[%emt 0:01:14]} f5 {[%emt 0:00:11]} 28. a5 {[%emt 0:05:31]} Kg7 {[%emt 0:02:17]} 29. h4 {[%emt 0:01:35]} e4 {[%emt 0:04:28]} 30. Bf1 {[%emt 0:00:28]} Be7 {[%emt 0:01:54]} 31. a6 {[%emt 0:00:51]} bxa6 {[%emt 0:03:36]} 32. Bxa6 {[%emt 0:00:26]} Bd7 {[%emt 0:05:04]} 33. Be2 {[%emt 0:00:35]} Be8 {[%emt 0:00:09]} 34. Ra7 {[%emt 0:00:05]} Kf6 {[%emt 0:00:04]} 35. Rb6 {[%emt 0:00:28]} Bf7 {[%emt 0:00:45]} 36. Bb5 {[%emt 0:01:16]} Bxd5 {[%emt 0:01:27]} 37. Rd7 {[%emt 0:00:48]} Rxd7 {[%emt 0:02:09]} 38. Bxd7 {[%emt 0:01:42]} Bc4 {[%emt 0:01:11]} 39. Ba4 {[%emt 0:00:07]} Ke5 {[%emt 0:00:21]} 40. Rb8 {[%emt 0:00:03]} h6 {[%emt 0:01:21]} 41. Bb3 {[%emt 0:00:09]} Be2 {[%emt 0:01:58]} 42. Ra8 {[%emt 0:00:12]} g5 {[%emt 0:03:55]} 43. Ra7 {[%emt 0:00:18]} Kf6 {[%emt 0:00:38]} 44. hxg5+ {[%emt 0:00:54]} hxg5 {[%emt 0:01:19]} 45. Ra2 {[%emt 0:00:11]} Bb5 {[%emt 0:00:35]} 46. Ra7 {[%emt 0:00:05]} Bd3 {[%emt 0:00:03]} 47. Rc7 {[%emt 0:00:09]} Bf8 {[%emt 0:00:23]} 48. Ra7 {[%emt 0:01:10]} f4 {[%emt 0:01:06]} 49. gxf4 {[%emt 0:00:52]} gxf4 {[%emt 0:00:29]} 50. exf4 {[%emt 0:00:16]} Bh6 {[%emt 0:00:49]} 51. Ra4 {[%emt 0:00:15]} Kf5 {[%emt 0:00:06]} 52. f3 {[%emt 0:00:47]} exf3 {[%emt 0:00:38]} 53. Rd4 {[%emt 0:01:13]} Be2 {[%emt 0:02:15]} 54. Rxd6 {[%emt 0:01:25]} Bxf4 {[%emt 0:03:05]} 55. Rd8 {[%emt 0:00:19]} Be3+ {[%emt 0:00:16]} 56. Kh1 {[%emt 0:00:18]} Kg4 {[%emt 0:00:05]} 57. Rg8+ {[%emt 0:01:01]} Kh4 {[%emt 0:00:11]} 58. Rh8+ {[%emt 0:00:48]} Kg3 {[%emt 0:01:30]} 59. Rg8+ {[%emt 0:00:13]} Kf4 {[%emt 0:00:10]} 1/2-1/2

[Event "Eurasia Open Cup 2019"]
[Site "Ekaterinburg"]
[Date "2019.08.08"]
[Round "8.2"]
[White "Sargsyan, Shant"]
[Black "Pridorozhni, Aleksei"]
[Result "1-0"]
[ECO "E62"]
[WhiteElo "2529"]
[BlackElo "2586"]
[Annotator "ChessBase"]
[PlyCount "69"]
[EventDate "2019.07.31"]
[EventType "swiss"]
[EventCountry "RUS"]
[SourceTitle "playchess.com"]
[Source "ChessBase"]
[SourceQuality "1"]
[TimeControl "5400+30"]

1. d4 {[%emt 0:00:10]} Nf6 {[%emt 0:00:00]} 2. Nf3 {[%emt 0:00:35]} g6 {[%emt 0:00:00]} 3. c4 {[%emt 0:00:52]} Bg7 {[%emt 0:00:00]} 4. g3 {[%emt 0:00:00]} O-O {[%emt 0:00:25]} 5. Bg2 {[%emt 0:00:05]} d6 {[%emt 0:00:15]} 6. Nc3 {[%emt 0:00:59]} c6 {[%emt 0:00:50]} 7. O-O {[%emt 0:01:18]} Qb6 {[%emt 0:00:00]} 8. c5 {[%emt 0:01:33]} dxc5 {[%emt 0:00:00]} 9. Na4 {[%emt 0:00:11]} Qb5 {[%emt 0:00:11]} 10. Nxc5 {[%emt 0:00:28]} Na6 {[%emt 0:00:12]} 11. a4 {[%emt 0:01:35]} Qb6 {[%emt 0:05:02]} 12. a5 {[%emt 0:00:50]} Qb5 {[%emt 0:00:07]} 13. Nxa6 {[%emt 0:00:48]} Qxa6 {[%emt 0:00:06]} 14. Re1 {[%emt 0:01:13]} Be6 {[%emt 0:07:47]} 15. e4 {[%emt 0:01:58]} Rfd8 {[%emt 0:04:44]} 16. Qc2 {[%emt 0:15:11]} Bc4 {[%emt 0:07:12]} 17. Ne5 {[%emt 0:01:58]} Bb5 {[%emt 0:00:18]} 18. Qb3 {[%emt 0:02:47]} e6 {[%emt 0:01:32]} 19. Qf3 {[%emt 0:01:38]} Rf8 {[%emt 0:09:35]} 20. Bg5 {[%emt 0:00:16]} Nh5 {[%emt 0:00:48]} 21. Be7 {[%emt 0:06:25]} Bxe5 {[%emt 0:00:16]} 22. dxe5 {[%emt 0:00:15]} Rfe8 {[%emt 0:00:14]} 23. Bg5 {[%emt 0:01:54]} c5 {[%emt 0:02:27]} 24. g4 {[%emt 0:04:36]} Ng7 {[%emt 0:00:09]} 25. Qf4 {[%emt 0:01:54]} Red8 {[%emt 0:01:54]} 26. Bxd8 {[%emt 0:07:06]} Rxd8 {[%emt 0:00:07]} 27. Rec1 {[%emt 0:03:14]} Qc6 {[%emt 0:02:14]} 28. Rd1 {[%emt 0:02:17]} Rxd1+ {[%emt 0:00:27]} 29. Rxd1 {[%emt 0:00:01]} Qc7 {[%emt 0:00:08]} 30. h4 {[%emt 0:08:21]} h5 {[%emt 0:01:03]} 31. gxh5 {[%emt 0:01:00]} Nxh5 {[%emt 0:03:56]} 32. Qg5 {[%emt 0:01:01]} Qxa5 {[%emt 0:00:43]} 33. Bf3 {[%emt 0:01:45]} Ng7 {[%emt 0:01:04]} 34. h5 {[%emt 0:01:07]} gxh5 {[%emt 0:00:12]} 35. Kh1 {[%emt 0:00:41]} 1-0

[Event "Eurasia Open Cup 2019"]
[Site "Ekaterinburg"]
[Date "2019.08.08"]
[Round "8.3"]
[White "Afanasiev, Nikita"]
[Black "Khusenkhojaev, Muhammad"]
[Result "1-0"]
[ECO "C90"]
[WhiteElo "2514"]
[BlackElo "2441"]
[Annotator "ChessBase"]
[PlyCount "85"]
[EventDate "2019.07.31"]
[EventType "swiss"]
[EventCountry "RUS"]
[SourceTitle "playchess.com"]
[Source "ChessBase"]
[SourceQuality "1"]
[TimeControl "5400+30"]

1. e4 {[%emt 0:00:00]} e5 {[%emt 0:00:00]} 2. Nf3 {[%emt 0:00:00]} Nc6 {[%emt 0:00:00]} 3. Bb5 {[%emt 0:00:00]} a6 {[%emt 0:00:00]} 4. Ba4 {[%emt 0:00:00]} Nf6 {[%emt 0:00:00]} 5. O-O {[%emt 0:00:00]} Be7 {[%emt 0:00:00]} 6. Re1 {[%emt 0:00:44]} b5 {[%emt 0:00:08]} 7. Bb3 {[%emt 0:00:00]} d6 {[%emt 0:00:11]} 8. a4 {[%emt 0:00:00]} b4 {[%emt 0:01:41]} 9. a5 {[%emt 0:00:58]} O-O {[%emt 0:00:43]} 10. h3 {[%emt 0:00:43]} Be6 {[%emt 0:07:57]} 11. Bxe6 {[%emt 0:03:37]} fxe6 {[%emt 0:00:07]} 12. c3 {[%emt 0:00:00]} Rb8 {[%emt 0:04:17]} 13. d4 {[%emt 0:06:32]} bxc3 {[%emt 0:12:29]} 14. bxc3 {[%emt 0:01:31]} Rb5 {[%emt 0:04:51]} 15. c4 {[%emt 0:10:16]} Rxa5 {[%emt 0:06:09]} 16. Rxa5 {[%emt 0:03:12]} Nxa5 {[%emt 0:00:06]} 17. Qa4 {[%emt 0:00:37]} Nb7 {[%emt 0:00:04]} 18. Qc6 {[%emt 0:10:50]} Qb8 {[%emt 0:02:28]} 19. dxe5 {[%emt 0:01:06]} Nd8 {[%emt 0:01:36]} 20. Qxa6 {[%emt 0:05:16]} Nxe4 {[%emt 0:00:29]} 21. Rxe4 {[%emt 0:26:24]} Qxb1 {[%emt 0:00:14]} 22. Re1 {[%emt 0:00:04]} Qg6 {[%emt 0:08:04]} 23. Qa8 {[%emt 0:04:12]} Qc2 {[%emt 0:13:05]} 24. Be3 {[%emt 0:21:20]} dxe5 {[%emt 0:06:52]} 25. c5 {[%emt 0:01:43]} e4 {[%emt 0:02:12]} 26. Rc1 {[%emt 0:00:32]} Qd3 {[%emt 0:01:30]} 27. Nd2 {[%emt 0:00:25]} Qd5 {[%emt 0:01:19]} 28. Qa4 {[%emt 0:00:37]} Nf7 {[%emt 0:10:11]} 29. Nxe4 {[%emt 0:00:48]} Ra8 {[%emt 0:01:20]} 30. Qc2 {[%emt 0:00:43]} Qf5 {[%emt 0:00:24]} 31. Qb1 {[%emt 0:00:11]} Rd8 {[%emt 0:04:40]} 32. Qb7 {[%emt 0:01:37]} Qe5 {[%emt 0:02:01]} 33. Nd2 {[%emt 0:00:25]} Rd7 {[%emt 0:02:49]} 34. c6 {[%emt 0:00:38]} Nd8 {[%emt 0:03:13]} 35. Qa7 {[%emt 0:00:06]} Rd3 {[%emt 0:00:58]} 36. g3 {[%emt 0:01:06]} Qd6 {[%emt 0:03:59]} 37. Nc4 {[%emt 0:00:59]} Rd1+ {[%emt 0:01:06]} 38. Kh2 {[%emt 0:00:29]} Qd5 {[%emt 0:00:43]} 39. Rxd1 {[%emt 0:00:43]} Qxd1 {[%emt 0:00:24]} 40. Qxc7 {[%emt 0:00:00]} Kf8 {[%emt 0:00:01]} 41. Qc8 {[%emt 0:00:14]} Kf7 {[%emt 0:00:40]} 42. c7 {[%emt 0:00:00]} Nc6 {[%emt 0:01:22]} 43. Qb7 {[%emt 0:00:00]} 1-0

[Event "Eurasia Open Cup 2019"]
[Site "Ekaterinburg"]
[Date "2019.08.08"]
[Round "8.4"]
[White "Bocharov, Ivan"]
[Black "Drygalov, Sergey"]
[Result "1/2-1/2"]
[ECO "A11"]
[WhiteElo "2559"]
[BlackElo "2492"]
[Annotator "ChessBase"]
[PlyCount "81"]
[EventDate "2019.07.31"]
[EventType "swiss"]
[EventCountry "RUS"]
[SourceTitle "playchess.com"]
[Source "ChessBase"]
[SourceQuality "1"]
[TimeControl "5400+30"]

1. Nf3 {[%emt 0:00:00]} d5 {[%emt 0:16:52]} 2. e3 {[%emt 0:00:00]} Nf6 {[%emt 0:01:14]} 3. c4 {[%emt 0:00:00]} c6 {[%emt 0:00:31]} 4. Nc3 {[%emt 0:00:00]} e6 {[%emt 0:01:01]} 5. b3 {[%emt 0:00:00]} Nbd7 {[%emt 0:01:19]} 6. Qc2 {[%emt 0:01:13]} b6 {[%emt 0:00:42]} 7. cxd5 {[%emt 0:01:51]} exd5 {[%emt 0:00:37]} 8. Bb2 {[%emt 0:01:26]} Bb7 {[%emt 0:01:46]} 9. d4 {[%emt 0:04:45]} Bd6 {[%emt 0:01:12]} 10. Bd3 {[%emt 0:00:00]} O-O {[%emt 0:02:03]} 11. O-O {[%emt 0:00:00]} Re8 {[%emt 0:03:04]} 12. Rfe1 {[%emt 0:00:00]} Bb4 {[%emt 0:03:38]} 13. a3 {[%emt 0:02:34]} Bxc3 {[%emt 0:00:10]} 14. Bxc3 {[%emt 0:00:08]} Ne4 {[%emt 0:01:29]} 15. Bb2 {[%emt 0:00:01]} h6 {[%emt 0:01:12]} 16. Ne5 {[%emt 0:03:11]} Nxe5 {[%emt 0:07:26]} 17. dxe5 {[%emt 0:00:06]} Nc5 {[%emt 0:02:05]} 18. Bf5 {[%emt 0:03:21]} Qe7 {[%emt 0:08:55]} 19. Rad1 {[%emt 0:07:29]} g6 {[%emt 0:13:32]} 20. b4 {[%emt 0:03:34]} Ne6 {[%emt 0:00:51]} 21. Bxe6 {[%emt 0:00:38]} Qxe6 {[%emt 0:00:18]} 22. Rd4 {[%emt 0:00:01]} c5 {[%emt 0:03:30]} 23. bxc5 {[%emt 0:03:57]} Rac8 {[%emt 0:01:09]} 24. Rf4 {[%emt 0:03:38]} Rxc5 {[%emt 0:03:10]} 25. Qd1 {[%emt 0:04:06]} Rc4 {[%emt 0:01:08]} 26. Bd4 {[%emt 0:01:04]} Qc6 {[%emt 0:02:36]} 27. h4 {[%emt 0:02:19]} Bc8 {[%emt 0:01:37]} 28. Qf3 {[%emt 0:00:01]} Bf5 {[%emt 0:01:16]} 29. h5 {[%emt 0:03:23]} Be4 {[%emt 0:03:21]} 30. Qg3 {[%emt 0:02:45]} Re6 {[%emt 0:00:07]} 31. f3 {[%emt 0:05:37]} Bd3 {[%emt 0:00:06]} 32. Rd1 {[%emt 0:01:17]} Rc1 {[%emt 0:01:10]} 33. Rxc1 {[%emt 0:00:32]} Qxc1+ {[%emt 0:00:08]} 34. Kh2 {[%emt 0:00:00]} g5 {[%emt 0:06:31]} 35. Rf6 {[%emt 0:00:09]} Qc2 {[%emt 0:01:23]} 36. Qg4 {[%emt 0:05:03]} Rxf6 {[%emt 0:00:58]} 37. exf6 {[%emt 0:00:01]} Bf5 {[%emt 0:01:24]} 38. Qg3 {[%emt 0:00:02]} Kh7 {[%emt 0:00:34]} 39. Qd6 {[%emt 0:12:55]} Qf2 {[%emt 0:00:06]} 40. Qf8 {[%emt 0:06:17]} Qh4+ {[%emt 0:00:05]} 41. Kg1 {[%emt 0:00:01]} 1/2-1/2